Cogmind - Beta 14 @@@ ROGUE MODE // 2024.09.09 @ 01:34:55 Player: Null_error Result: Destroyed by Y-54 Guardian with Flak Gun Performance ------------- Evolutions (4) 2000 Regions Visited (9) 1800 Robots Destroyed (41) 205 Value Destroyed (923) 923 Prototype IDs (7) 140 Alien Tech Used (0) 0 Bonus (961) 961 TOTAL SCORE: 6029 Bonus ------- Follower Combat Kills 361 Met Imprinter 300 Was Imprinted 300 Cogmind --------- Core Integrity 0/850 Matter 289/300 Energy 53/330 System Corruption 13% Temperature Cool (18) Movement Core (150) Ox2 Location -6/Extension Parts ------- > --- POWER (2) -------- Light Deuterium Engine Improved Deuterium Engine > --- PROPULSION (5) --- (None) > --- UTILITY (6) ------ Medium Storage Unit Advanced Weight Redist. System Visual Processing Unit Improved Signal Interpreter Experimental Core Analyzer > --- WEAPON (2) ------- (None) > --- INVENTORY (10) --- Improved Deuterium Engine Carbon-fiber Leg Improved Heat Sink Advanced Heat Sink Structural Scanner Improved Sensor Array Terrain Scan Processor Force Field Peak State ------------ > --- POWER ------------ Improved Deuterium Engine Fission Core > --- PROPULSION ------- Light Treads Carbon-fiber Leg Flexi-carbon Leg Myomer Leg Biomechanical Wings > --- UTILITY ---------- Improved Heat Sink Improved Heat Sink Advanced Heat Sink Advanced Weight Redist. System Experimental Core Analyzer Experimental Core Analyzer > --- WEAPON ----------- Phasing Sabre > --- INVENTORY -------- Improved Deuterium Engine Armored Leg Terrain Scan Processor Force Field CR-A16's Pointy Stick [Rating: 73] Favorites ----------- Power Light Ion Engine Engine Light Ion Engine Power Core Light Nuclear Core Propulsion Flight Unit Treads Light Treads Leg Aluminum Leg Wheel Wheel Hover Unit Improved Gravmag System Flight Unit Flight Unit Utility Experimental Core Analyzer Device Advanced Weight Redist. System Storage Small Storage Unit Processor Experimental Core Analyzer Hackware Experimental System Shield Weapon CR-A16's Pointy Stick Energy Gun Medium Laser Energy Cannon Particle Cannon Ballistic Gun Assault Rifle Launcher Heavy Missile Launcher Special Weapon Mining Laser Slashing Weapon Phasing Sabre Piercing Weapon CR-A16's Pointy Stick Build | -11 -10 -9 -9 -7 -6 -6 -6 -6 -6 ------- Run | Yrd Mat Mat Min Zio Pro Fac Was Fac Ext Slots Evolved 8 | . . 2 . . . 6 . . . Power 1 | . . . . . . 1 . . . Propulsion 3 | . . 1 . . . 2 . . . Utility 4 | . . 1 . . . 3 . . . Weapon . | . . . . . . . . . . Parts Attached 125 | 6 1 8 28 9 10 22 2 14 25 Power 23 | 1 . 2 6 . 4 2 1 2 5 Engine 17 | 1 . 2 4 . 1 2 1 2 4 Core 6 | . . . 2 . 3 . . . 1 Reactor . | . . . . . . . . . . Propulsion 39 | 2 . 2 13 1 3 5 1 4 8 Treads 2 | . . . . . . . . 1 1 Leg 16 | 2 . 1 8 . . . . 1 4 Wheel 3 | . . 1 . . . 1 . . 1 Hover 4 | . . . . . . 3 . . 1 Flight 14 | . . . 5 1 3 1 1 2 1 Utility 38 | 1 1 2 4 4 . 9 . 7 10 Device 20 | . . . 1 2 . 3 . 7 7 Storage 7 | 1 1 . 2 . . 2 . . 1 Processor 10 | . . 2 1 1 . 4 . . 2 Hackware 1 | . . . . 1 . . . . . Protection . | . . . . . . . . . . Artifact . | . . . . . . . . . . Weapon 25 | 2 . 2 5 4 3 6 . 1 2 Energy Gun 5 | 1 . 1 1 . . 2 . . . Energy Cannon 2 | . . . 1 . 1 . . . . Ballistic Gun 6 | 1 . 1 1 . 1 2 . . . Ballistic Cannon . | . . . . . . . . . . Launcher 2 | . . . . 1 1 . . . . Special Weapon 3 | . . . 1 2 . . . . . Impact Weapon . | . . . . . . . . . . Slashing Weapon 2 | . . . 1 . . . . . 1 Piercing Weapon 5 | . . . . 1 . 2 . 1 1 Special Melee Weapon . | . . . . . . . . . . Unidentified Prototypes 7 | . . . . 3 . 3 . 1 . Parts Lost 33 | . . 1 4 . 1 7 1 8 11 Power 4 | . . 1 . . . . . 1 2 Propulsion 16 | . . . 3 . 1 5 1 2 4 Utility 10 | . . . . . . 2 . 5 3 Weapon 3 | . . . 1 . . . . . 2 Highest Loss Streak 7 | . . 1 4 . 1 6 1 5 7 To Critical Strikes . | . . . . . . . . . . Average Slot Usage (%) 83 | . 85 90 94 94 89 79 24 45 83 Engine 6 | . 14 10 9 11 2 1 . 1 5 Core 3 | . . . 1 . 9 5 . . 5 Leg 10 | . 28 22 19 . . . . 3 16 Hover 1 | . . . . . . 6 . . 1 Flight 13 | . . . 11 33 32 18 1 2 5 Device 6 | . . . . 5 11 2 . 13 15 Storage 5 | . 14 11 10 9 . 4 . . 2 Processor 17 | . . 17 21 16 11 23 20 16 17 Hackware 2 | . . . . 1 11 5 . . . Energy Gun 1 | . 14 11 . . . . . . . Ballistic Gun 3 | . 14 11 6 . 1 1 . . . Special Weapon 1 | . . . 1 5 . . . . . Slashing Weapon 1 | . . . 3 . . . . . 4 Piercing Weapon 3 | . . . . 10 11 3 2 4 1 Peak Build Rating 73 | 6 7 14 17 37 44 68 44 54 73 Average Rating 35 | 4 6 11 13 19 40 56 30 42 61 On Entrance 21 | . 6 6 14 14 37 44 28 26 40 Naked Turns . | . . . . . . . . . . Heaviest Build 38 | 13 33 32 32 12 16 20 3 11 38 Greatest Support 69 | 20 20 20 33 12 12 24 3 28 69 Greatest Overweight (x) 4 | 4 1 3 3 . 1 4 . 1 2 Average Overweight (x) . | . . 2 . . . . . . . Largest Inventory Capacity 15 | 8 15 15 15 8 5 10 5 5 10 Average Capacity 8 | 7 12 15 12 7 5 7 5 5 7 Most Carried 15 | 3 5 15 15 8 5 8 5 5 10 Average Carried 7 | 1 3 9 11 7 4 6 4 3 6 Final Capacity 15 | 8 15 15 8 5 5 5 5 5 10 Final Carried 15 | 2 5 15 8 5 5 5 5 5 8 Class Distribution -------------------- 51% | Scavenger-Mutant 23% | Mutant 13% | Scavenger-Sprinter 9% | Scavenger-Assassin Dominant Class ---------------- Mutant | -10/Materials Mutant | -9/Materials Scavenger-Mutant | -9/Mines Scavenger-Mutant | -7/Zion Scavenger-Sprinter | -6/Proximity Caves Scavenger-Mutant | -6/Factory Mutant | -6/Waste Mutant | -6/Factory Scavenger-Mutant | -6/Extension Resources | -11 -10 -9 -9 -7 -6 -6 -6 -6 -6 ----------- Run | Yrd Mat Mat Min Zio Pro Fac Was Fac Ext Matter Collected 1582 | 264 . 134 369 40 173 208 . 33 361 Remotely . | . . . . . . . . . . Salvage Created 1678 | 148 . 365 462 . 107 89 . 13 494 Parts 112 | 6 . 25 31 . 6 9 . 4 31 Haulers Intercepted . | . . . . . . . . . . Recyclers Shooed 2 | . . . 2 . . . . . . Parts Field Recycled . | . . . . . . . . . . Retrieved Matter . | . . . . . . . . . . Parts Self-Destructed 14 | . . . . . 14 . . . . Prevented 1 | . . . . . 1 . . . . Kills | -11 -10 -9 -9 -7 -6 -6 -6 -6 -6 ------- Run | Yrd Mat Mat Min Zio Pro Fac Was Fac Ext Combat Hostiles Destroyed 18 | . . 4 10 . 1 . . . 3 Melee 3 | . . . . . . . . . 3 Guns 11 | . . 4 7 . . . . . . Cannons 3 | . . . 3 . . . . . . AOE 1 | . . . . . 1 . . . . Classes Destroyed 11 | 2 . 5 2 . 1 . . . 1 Worker 3 | 2 . . . . . 1 . . . Builder 5 | . . 1 2 . . . . 1 1 Recycler 6 | 1 . 1 2 . . . . . 2 Minesweeper 2 | . . . . . 2 . . . . Operator 2 | . . 2 . . . . . . . Watcher 5 | . . 1 . . . 2 . . 2 Swarmer 4 | . . . 4 . . . . . . Grunt 8 | . . 1 5 . 1 . . . 1 Duelist 1 | . . . 1 . . . . . . Sentry 3 | . . 3 . . . . . . . Programmer 2 | . . . . . . . . . 2 Best Kill Streak 5 | 2 . 2 5 . 2 2 . 1 2 Combat Bots Only 4 | . . 2 4 . 1 . . . 1 Max Kills in Single Turn 1 | 1 . 1 1 . 1 1 . 1 1 Gunslinging . | . . . . . . . . . . Exploded 1 | . . . . . 1 . . . . Melee 1 | . . . . . . . . . 1 Uniques/NPCs Destroyed . | . . . . . . . . . . Combat | -11 -10 -9 -9 -7 -6 -6 -6 -6 -6 -------- Run | Yrd Mat Mat Min Zio Pro Fac Was Fac Ext Hostile Shots Fired 410 | . 6 28 64 . 4 43 5 111 149 Missed 153 | . 2 8 11 . 2 12 4 45 69 Damage Taken 3890 | . 34 271 657 . 97 450 36 1053 1292 Core 1147 | . 7 79 193 . 17 149 24 303 375 Absorbed by Shields 21 | . . . . . . . . 21 . Regen/Repaired (Parts) 17 | . . . . 17 . . . . . Core Remaining (%) 74 | 100 97 . . . 27 . . . . Volleys Fired 85 | 6 . 20 55 . 2 2 . . . Largest 2 | 2 . 2 2 . 1 1 . . . Hottest 100 | 70 . 70 100 . 39 23 . . . Shots Fired 130 | 12 . 40 74 . 2 2 . . . Gun 100 | 12 . 40 46 . . 2 . . . Cannon 26 | . . . 26 . . . . . . Launcher 2 | . . . . . 2 . . . . Special 2 | . . . 2 . . . . . . Kinetic 70 | 6 . 20 42 . . 2 . . . Thermal 37 | 6 . 3 28 . . . . . . Explosive 2 | . . . . . 2 . . . . Electromagnetic 21 | . . 17 4 . . . . . . Robot Hit Streak 14 | 3 . 10 14 . 1 2 . . . Robot Miss Streak 4 | 1 . 2 4 . 2 1 . . . Penetration Max . | . . . . . . . . . . Secondary Targets . | . . . . . . . . . . Shots Hit Robots 125 | 8 . 30 59 . 9 4 . 4 11 Core Hits 64 | 5 . 17 24 . 6 2 . 1 9 Critical Kills . | . . . . . . . . . . Critical Parts Destroyed . | . . . . . . . . . . Critical Strikes . | . . . . . . . . . . Melee Attacks 54 | . . . 8 . 13 4 . 9 20 Impact . | . . . . . . . . . . Slashing 22 | . . . 8 . . . . . 14 Piercing 32 | . . . . . 13 4 . 9 6 Sneak Attacks 13 | . . . 3 . 3 1 . 1 5 Combat Hostiles 1 | . . . . . . . . . 1 Follow-up Attacks 2 | . . . . . . . . . 2 Damage Inflicted 3146 | 80 . 426 1073 . 587 160 . 104 716 Guns 901 | 78 . 382 426 . . 15 . . . Cannons 367 | . . . 367 . . . . . . Explosions 237 | . . 40 . . 197 . . . . Melee 1559 | . . . 247 . 390 145 . 104 673 Ramming 58 | 2 . 4 9 . . . . . 43 Kinetic 573 | 40 . 140 378 . . 15 . . . Thermal 481 | 38 . 52 391 . . . . . . Explosive 197 | . . . . . 197 . . . . Electromagnetic 278 | . . 230 48 . . . . . . Impact . | . . . . . . . . . . Slashing 746 | . . . 247 . . . . . 499 Piercing 813 | . . . . . 390 145 . 104 174 Highest Corruption 13 | . . 1 1 1 . 5 13 13 13 Average Corruption 8 | . . 1 1 1 . 4 11 13 13 Corruption Purged . | . . . . . . . . . . Corruption Blocked . | . . . . . . . . . . Effects 75 | . . . 5 1 . 1 6 11 51 Message Errors 16 | . . . 2 1 . . 1 1 11 Matter Fused 15 | . . . 2 . . . . 3 10 Heat Flow Errors 13 | . . . 1 . . . 1 3 8 Energy Discharges 6 | . . . . . . . . 3 3 Parts Rejected 3 | . . . . . . . 1 . 2 Data Loss (minor) 10 | . . . . . . 1 1 1 7 Data Loss (major) 5 | . . . . . . . . . 5 Misdirections 7 | . . . . . . . 2 . 5 Overload Shots . | . . . . . . . . . . Overflow Damage 331 | . . . 40 . 177 28 . . 86 Projectiles . | . . . . . . . . . . Explosions 42 | . . . . . 42 . . . . Melee 289 | . . . 40 . 135 28 . . 86 Knockbacks 2 | . . . . . . . . . 2 Impact 2 | . . . . . . . . . 2 Kinetic . | . . . . . . . . . . Secondary . | . . . . . . . . . . Self-Inflicted Damage 62 | . . . . . 62 . . . . Shots 1 | . . . . . 1 . . . . Rammed . | . . . . . . . . . . Targets Rammed 16 | 1 . 1 3 . . . . . 11 Kicked 16 | 1 . 1 3 . . . . . 11 Crushed . | . . . . . . . . . . Highest Temperature 406 | 50 . 25 406 . 9 . 178 175 264 Average Temperature 83 | 23 . 8 100 . 9 . 104 93 93 Received Heat Transfer 882 | . . 105 219 . 9 96 . 18 435 Effects 1 | . . . 1 . . . . . . Short Circuit 1 | . . . 1 . . . . . . Siege Activations . | . . . . . . . . . . Robots Corrupted . | . . . . . . . . . . Combat Hostiles . | . . . . . . . . . . Parts Fried . | . . . . . . . . . . Impact Corruptions . | . . . . . . . . . . Robots Melted . | . . . . . . . . . . Combat Hostiles . | . . . . . . . . . . Parts Melted 1 | . . . 1 . . . . . . Heat Transferred 914 | 111 . 87 716 . . . . . . Parts Sabotaged . | . . . . . . . . . . Parts Stolen . | . . . . . . . . . . Parts Stripped . | . . . . . . . . . . Power Chain Reactions 1 | . . 1 . . . . . . . Alert | -11 -10 -9 -9 -7 -6 -6 -6 -6 -6 ------- Run | Yrd Mat Mat Min Zio Pro Fac Was Fac Ext Peak Influence 224 | 15 9 173 224 . . 139 42 30 143 Initial 80 | . 9 3 17 . . 80 27 22 14 Average 62 | 4 9 40 108 . . 79 32 14 62 Maximum Alert Level 1 | . . . 1 . . . . . . Low Security (%) 96 | 100 100 100 81 . . 100 100 100 100 Level 1 3 | . . . 18 . . . . . . Level 2 . | . . . . . . . . . . Level 3 . | . . . . . . . . . . Level 4 . | . . . . . . . . . . Level 5 . | . . . . . . . . . . High Security . | . . . . . . . . . . Max Security . | . . . . . . . . . . Squads Dispatched 6 | . . 3 . . . 1 . 2 . Investigation 1 | . . . . . . . . 1 . Extermination 1 | . . . . . . 1 . . . Reinforcement 4 | . . 3 . . . . . 1 . Assault . | . . . . . . . . . . Garrison . | . . . . . . . . . . Intercept . | . . . . . . . . . . Searches Triggered . | . . . . . . . . . . Construction Impeded 1 | . . . . . . . . 1 . Haulers Reinforced . | . . . . . . . . . . Active Scanning Responses . | . . . . . . . . . . Cargo Convoy Interrupts . | . . . . . . . . . . Stealth | -11 -10 -9 -9 -7 -6 -6 -6 -6 -6 --------- Run | Yrd Mat Mat Min Zio Pro Fac Was Fac Ext Distress Signals 2 | . . 2 . . . . . . . Communications Jammed . | . . . . . . . . . . Distress Signals . | . . . . . . . . . . Times Spotted 84 | . 3 14 14 . 9 17 5 5 17 Peak Tracking Total 8 | . 3 8 7 . 3 6 5 5 6 Tactical Retreats 6 | . . . 1 . 1 3 . . 1 Traps | -11 -10 -9 -9 -7 -6 -6 -6 -6 -6 ------- Run | Yrd Mat Mat Min Zio Pro Fac Was Fac Ext Traps Triggered 6 | . . 1 . . . 2 . 2 1 Indirectly . | . . . . . . . . . . Trap Hack Attempts . | . . . . . . . . . . Triggered . | . . . . . . . . . . Disarmed . | . . . . . . . . . . Reprogrammed . | . . . . . . . . . . Reused . | . . . . . . . . . . Traps Extracted . | . . . . . . . . . . Installed . | . . . . . . . . . . Triggered . | . . . . . . . . . . Machines | -11 -10 -9 -9 -7 -6 -6 -6 -6 -6 ---------- Run | Yrd Mat Mat Min Zio Pro Fac Was Fac Ext Machines Disabled . | . . . . . . . . . . Max in Single Turn . | . . . . . . . . . . Machines Repaired . | . . . . . . . . . . Machines Dismantled . | . . . . . . . . . . Machines Sabotaged . | . . . . . . . . . . Overloaded Fab Kills . | . . . . . . . . . . Hacking | -11 -10 -9 -9 -7 -6 -6 -6 -6 -6 --------- Run | Yrd Mat Mat Min Zio Pro Fac Was Fac Ext Machines Accessed 2 | . 1 . . . . . . . 1 Terminals 2 | . 1 . . . . . . . 1 Fabricators . | . . . . . . . . . . Repair Stations . | . . . . . . . . . . Recycling Units . | . . . . . . . . . . Scanalyzers . | . . . . . . . . . . Garrison Access . | . . . . . . . . . . Total Hacks 2 | . 1 . . . . . . . 1 Successful 2 | . 1 . . . . . . . 1 Failed . | . . . . . . . . . . Catastrophic . | . . . . . . . . . . Database Lockouts . | . . . . . . . . . . Manual 3 | . . . . 2 . . . . 1 Terminals 2 | . 1 . . . . . . . 1 Fabricators . | . . . . . . . . . . Repair Stations . | . . . . . . . . . . Recycling Units . | . . . . . . . . . . Scanalyzers . | . . . . . . . . . . Garrison Access . | . . . . . . . . . . Terminal Hacks 2 | . 1 . . . . . . . 1 Record 1 | . 1 . . . . . . . . Open Door 1 | . . . . . . . . . 1 Fabricator Hacks . | . . . . . . . . . . Repair Station Hacks . | . . . . . . . . . . Recycling Unit Hacks . | . . . . . . . . . . Scanalyzer . | . . . . . . . . . . Garrison Access Hacks . | . . . . . . . . . . Unauthorized Hacks . | . . . . . . . . . . Terminals . | . . . . . . . . . . Fabricators . | . . . . . . . . . . Repair Stations . | . . . . . . . . . . Recycling Units . | . . . . . . . . . . Scanalyzers . | . . . . . . . . . . Garrison Access . | . . . . . . . . . . Data Cores Recovered . | . . . . . . . . . . Used . | . . . . . . . . . . Hacking Detections 1 | . . . . . . . . . 1 Full Trace Events . | . . . . . . . . . . Feedback Events . | . . . . . . . . . . Feedback Blocked . | . . . . . . . . . . Robot Schematics Acquired 3 | . . . . 3 . . . . . Robots Built . | . . . . . . . . . . Authchips . | . . . . . . . . . . Time . | . . . . . . . . . . Total Robot Build Rating . | . . . . . . . . . . Part Schematics Acquired 14 | . . . . 14 . . . . . Parts Built . | . . . . . . . . . . Authchips . | . . . . . . . . . . Time . | . . . . . . . . . . Total Part Build Rating . | . . . . . . . . . . Parts Repaired . | . . . . . . . . . . Time . | . . . . . . . . . . Parts Recycled . | . . . . . . . . . . Recycled Matter . | . . . . . . . . . . Retrieved Matter . | . . . . . . . . . . Retrieved Components . | . . . . . . . . . . Parts Scanalyzed . | . . . . . . . . . . Part Schematics Acquired . | . . . . . . . . . . Parts Damaged . | . . . . . . . . . . Bothacking | -11 -10 -9 -9 -7 -6 -6 -6 -6 -6 ------------ Run | Yrd Mat Mat Min Zio Pro Fac Was Fac Ext Used RIF Installer . | . . . . . . . . . . Robots Hacked . | . . . . . . . . . . Non-combat . | . . . . . . . . . . Combat . | . . . . . . . . . . Robot Hacks Applied . | . . . . . . . . . . Relay Couplers Released . | . . . . . . . . . . Fabnet Peak Effective % . | . . . . . . . . . . Robots Rewired . | . . . . . . . . . . Allies Hacked 1 | . . . . . . . . . 1 Hacks Repelled . | . . . . . . . . . . Allies | -11 -10 -9 -9 -7 -6 -6 -6 -6 -6 -------- Run | Yrd Mat Mat Min Zio Pro Fac Was Fac Ext Total Allies 12 | . . . 6 4 . . . . 2 Largest Group 5 | . . . 3 5 4 4 . . 2 Highest-Rated Group 186 | . . . 77 186 155 147 . . 59 Highest-Rated Ally 40 | . . . 31 40 40 40 . . 39 Total Orders . | . . . . . . . . . . Ally Attacks 59 | . . . 16 . 16 1 . . 26 Total Damage 983 | . . . 128 . 471 16 . . 368 Kills 14 | . . . 2 . 8 . . . 4 Allies Corrupted . | . . . . . . . . . . Allies Melted . | . . . . . . . . . . Intel | -11 -10 -9 -9 -7 -6 -6 -6 -6 -6 ------- Run | Yrd Mat Mat Min Zio Pro Fac Was Fac Ext Robot Analysis Total . | . . . . . . . . . . Derelict Logs Recovered 5 | . . . 2 2 1 . . . . Drone Launches 1 | . . . . . . 1 . . . Drone Recoveries . | . . . . . . . . . . Exploration | -11 -10 -9 -9 -7 -6 -6 -6 -6 -6 ------------- Run | Yrd Mat Mat Min Zio Pro Fac Was Fac Ext Turns Passed 5259 | 137 153 550 834 671 547 689 106 375 1197 Spaces Moved 5890 | 79 97 309 688 1391 675 1075 159 388 1029 Core 296 | 15 . . . . . 8 159 109 5 Treads 83 | . . . . . . . . 62 21 Legs 1186 | 64 97 105 229 . . . . 22 669 Wheels 286 | . . 204 2 . . 80 . . . Hover 239 | . . . . . . 239 . . . Flight 3800 | . . . 457 1391 675 748 . 195 334 Fastest Speed 30 | 50 120 110 34 34 30 30 50 47 50 Average Speed 65 | 135 155 142 79 34 33 51 50 73 98 Slowest Speed 260 | 250 190 190 260 34 114 250 50 160 160 Overloaded Moves . | . . . . . . . . . . Propulsion Burnouts . | . . . . . . . . . . Robots Hopped 3 | . . . 1 . . 1 . 1 . Cave-ins Triggered 1 | . . . 1 . . . . . . Exploration Rate (%) 46 | 4 27 35 85 89 74 12 86 11 46 Regions Visited 9 Branch Regions 4 Pre-discovered Areas 3 | . . . 2 1 . . . . . Known Exits Taken . | . . . . . . . . . . Unknown Exits Taken 7 | 1 1 1 1 1 1 . . 1 . Scrap Searched 6 | . . . 1 3 2 . . . . Spaces Dug 5 | . . . 4 . . . . 1 . Terrain Destroyed 42 | . . 2 4 . 35 . . 1 . Melee 5 | . . . 4 . . . . 1 . Projectile . | . . . . . . . . . . AOE 37 | . . 2 . . 35 . . . . Terrain Rammed . | . . . . . . . . . . Walls Destroyed . | . . . . . . . . . . Machines Disabled . | . . . . . . . . . . Actions | -11 -10 -9 -9 -7 -6 -6 -6 -6 -6 --------- Run | Yrd Mat Mat Min Zio Pro Fac Was Fac Ext Total 7018 | 95 100 373 886 1588 968 1191 185 456 1176 Wait 719 | . . 26 80 174 261 70 20 28 60 Move 5876 | 78 96 308 685 1390 674 1073 158 385 1029 Hop 3 | . . . 1 . . 1 . 1 . Pick Up 49 | 3 2 9 8 5 1 5 3 5 8 Fast Attach 51 | 6 1 4 7 2 2 11 1 8 9 Attach 20 | . . . 3 . 2 3 1 6 5 Detach 13 | . 1 . 3 . 1 5 . 3 . Swap 55 | . . 4 18 7 6 9 . . 11 Drop 52 | 1 . 1 15 10 6 8 2 2 7 Fire 85 | 6 . 20 55 . 2 2 . . . Melee 52 | . . . 8 . 13 4 . 9 18 Ram . | . . . . . . . . . . Kick 16 | 1 . 1 3 . . . . . 11 Crush . | . . . . . . . . . . Escape Stasis 27 | . . . . . . . . 9 18 Rewire . | . . . . . . . . . . Trap . | . . . . . . . . . . Miscellaneous . | . . . . . . . . . . Route ------- -11/Scrapyard -10/Materials -9/Materials -9/Mines (discovered 3 exits: [*Mat x2] / *Zio) -7/Zion -6/Proximity Caves -6/Factory -6/Waste -6/Factory -6/Extension History --------- Turn | Location | Event 62 | -11/Scrapyard | Discovered new exit (range 15) 138 | -11/Scrapyard | Entered Materials 238 | -10/Materials | Discovered new exit (range 11) 291 | -10/Materials | Entered another Materials area 291 | -9/Materials | Evolved 2 slots: Propulsion x1, Utility x1 331 | -9/Materials | Build established: Mutant 791 | -9/Materials | Discovered new exit (range 12) 841 | -9/Materials | Entered Mines 910 | -9/Mines | Lost 4 parts (3n1w) 945 | -9/Mines | Learned location of Zion (-7) 951 | -9/Mines | Assisted by bots powering up and referring to "LRC-V3" 1205 | -9/Mines | Build established: Scavenger-Mutant 1275 | -9/Mines | Core integrity fell below 50% 1345 | -9/Mines | Lost 3 allies 1487 | -9/Mines | Crushed by falling debris 1517 | -9/Mines | Discovered new exit (range 10) 1534 | -9/Mines | Received a Mining Laser from a helpful Derelict 1601 | -9/Mines | Discovered new exit (range 7) 1624 | -9/Mines | A Derelict revealed a hidden shortcut to a safe place 1675 | -9/Mines | Entered Zion 1675 | -7/Zion | Accompanied by 3 allies 1691 | -7/Zion | Received a hallucinogenic algorithm 1708 | -7/Zion | Found CR-A16's Pointy Stick 1725 | -7/Zion | Led the pair of lost Derelicts to a safe place 1775 | -7/Zion | System corruption cleaned by Quarantine Array 1782 | -7/Zion | Learned location of Quarantine (-3) 1822 | -7/Zion | Visited the Megawrench Repair Shop 1827 | -7/Zion | Megawrench repaired 3 parts 1856 | -7/Zion | Met Imprinter 1867 | -7/Zion | Imprinted 1869 | -7/Zion | Declared Zion's savior 1908 | -7/Zion | Learned Factory stockpile data 1943 | -7/Zion | Given A8's code to call for help 1976 | -7/Zion | Learned Factory emergency access door positions 2022 | -7/Zion | Given the Hacking Drone Bay 2023 | -7/Zion | Found Prototype Device 2023 | -7/Zion | Identified Hacking Drone Bay 2153 | -7/Zion | Discovered new exit (range 16) 2261 | -7/Zion | Found Prototype Processor 2261 | -7/Zion | Identified Exp. Core Analyzer 2272 | -7/Zion | Found Prototype Hackware 2272 | -7/Zion | Identified Exp. System Shield 2276 | -7/Zion | Found Exp. Core Analyzer 2279 | -7/Zion | Found Prototype Processor 2346 | -7/Zion | Entered Proximity Caves 2346 | -6/Proximity Caves | Accompanied by 4 allies 2403 | -6/Proximity Caves | Learned Factory stockpile data 2748 | -6/Proximity Caves | Build established: Scavenger-Sprinter 2836 | -6/Proximity Caves | Discovered new exit (range 8) 2893 | -6/Proximity Caves | Entered Factory 2893 | -6/Factory | Accompanied by 4 allies 2893 | -6/Factory | Evolved 6 slots: Power x1, Propulsion x2, Utility x3 3003 | -6/Factory | Identified exit to DSF 3132 | -6/Factory | Identified Spectral Analyzer 3223 | -6/Factory | Lost 4 allies 3548 | -6/Factory | Build established: Scavenger-Mutant 3582 | -6/Factory | Sucked down chute 3582 | -6/Factory | Entered Waste 3596 | -6/Waste | Spotted C-40 Crusher 3597 | -6/Waste | EMP discharged 3597 | -6/Waste | System corruption reached 10% 3606 | -6/Waste | Lost 6 parts (5n1u) 3606 | -6/Waste | Spotted C-40 Crusher 3607 | -6/Waste | Spotted C-40 Crusher 3607 | -6/Waste | Spotted C-40 Crusher 3607 | -6/Waste | Spotted C-40 Crusher 3675 | -6/Waste | Discovered new exit (range 11) 3687 | -6/Waste | Identified exit to Factory 3688 | -6/Waste | Entered Factory 3937 | -6/Factory | Lost 5 parts (1n4u) 3993 | -6/Factory | Core integrity fell below 50% 4055 | -6/Factory | Discovered new exit (range 16) 4063 | -6/Factory | Entered Extension 4136 | -6/Extension | Spotted B-75 Beast 4181 | -6/Extension | Build established: Mutant 4211 | -6/Extension | Rescued a captive Derelict 4216 | -6/Extension | Rescued a captive Derelict 4569 | -6/Extension | Build established: Scavenger-Mutant 4980 | -6/Extension | Build established: Scavenger-Assassin 5241 | -6/Extension | Core integrity fell below 20% 5245 | -6/Extension | Spotted B-75 Beast 5260 | -6/Extension | Destroyed by Y-54 Guardian with Flak Gun Last Messages --------------- 05205_ Acquired 2 matter. 05207_ Acquired 6 matter. 05221_ System corrupted: Gravmag System rejected. 05223_ U-05 Engineer destroyed. 05225_ Lgt. Angular Momentum Engine destroyed. 05228_ Acquired Wheel. 05229_ U-05 Engineer destroyed. 05236_ Imp. Sensor Array destroyed. 05237_ Knocked back. 05237_ Myomer Leg destroyed. 05242_ System corrupted: Component data lost. 05243_ Wheel destroyed. 05243_ Fission Core destroyed. 05252_ Machine disabled. 05254_ Carbon-fiber Leg destroyed. 05255_ Dropped Biomechanical Wings. 05256_ Acquired 4 matter. 05258_ Flexi-carbon Leg destroyed. 05259_ System corrupted: Substantial component data lost. 05260_ Machine disabled. Map ----- +----------------------------------------------------+ | ?????????????????????????????????????????????????? | | ?????????????????????????????????????????????????? | | ?????????????????????????????????????????????????? | | ?????????????????????????????????????????????????? | | ?????????????????????????????????????????????????? | | ?????????????????????????????????????????????????? | | ?????????????????????????????????????????????????? | | ?????????????????????????????????????????????????? | | ??????????????????????? ????????????????????????? | | ??????????????????????? ????????????????????????? | | ??????????????????????? ????????????????????????? | | ??????????????????????? "???????????????????????? | | ??????????????????????? "???????????????????????? | | ???????????????????????? "???????????????????????? | | ???????????????????????? ???????????????????????? | | ???????????????????????? ???????????????????????? | | ???????????????????????? #??????????????????????? | | ???????????????????????? #??????????????????????? | | ???????????????????????? #??????????????????????? | | ???????????????????????? #??????????????????????? | | ???????????????????????? #??????????????????????? | | ????????????????????????# #??????????????????????? | | ????????????????????????# #??????????????????????? | | ????????????????????????# #??????????????????????? | | ????????????????????????# #???#??#???????????????? | | ??????????????????????###@### ## ### #???????????? | | ??????????????????????# "" "" ""??????????? | | ??????????????????????#% = " " #?????????? | | ??????????????????##?#; Y #?????????? | | ??????????#???????# ### Y R #?????????? | | ###########"########"#; R #?????????? | | % ???????? | | * %% ???????? | | % | BB BB ????????? | | ! % %BB BB ????????? | | = u k tk ????????? | | +###################### kR #?????????? | | #????????????????????# #?????????? | | #????????????????????# ??????????? | | ##????????????????????# ??????????? | | ??????????????????????# ???????????? | | ??????????????????????######T#"""####????????????? | | ????????????????????????????##???????????????????? | | ?????????????????????????????????????????????????? | | | | | | | | | | | | | +----------------------------------------------------+ Best States ------------- Heat Dissipation 84 Energy Generation 31 Energy Capacity 500 Matter Stores 300 Matter Capacity 300 Sight Range 18 Robot Scan Range 15 Terrain Scan Density 85 ECM Strength 2 Additional Mass Support 9 Corruption Containment 16 Evasion (%) 64 Targeting Accuracy 6 Core Analysis 12 Recoil Reduction 1 Defensive Hacking 16 Item Schematics ----------------- Hvy. Laser | -7/Zion | Archive Hvy. Plasma Cannon | -7/Zion | Archive Gauss Cannon | -7/Zion | Archive Imp. Carbon-fiber Leg | -7/Zion | Archive Imp. Core Shielding | -7/Zion | Archive Flak Gun | -7/Zion | Archive Imp. Reaction Control System | -7/Zion | Archive Imp. Field Recycling Unit | -7/Zion | Archive Adv. System Shield | -7/Zion | Archive Antigrav System | -7/Zion | Archive Imp. Shield Generator | -7/Zion | Archive Adv. Melee Analysis Suite | -7/Zion | Archive Gauss Rifle | -7/Zion | Archive Imp. Medium Treads | -7/Zion | Archive Robot Schematics ------------------ L-31 Rogue | -7/Zion | Archive W-25 Informer | -7/Zion | Archive G-47 Trooper | -7/Zion | Archive Fabricated ------------ Nothing Alien Tech Used ----------------- None Achievements -------------- The One Challenges ------------ None Game ------ Seed CoolantSwarmMapper Manual? 0 Play Time 01:25:30 Cumulative 28.5 hours Start 2024.09.08 @ 12:55:45 End 2024.09.09 @ 01:34:55 Sessions 5 Manual Loads 0 Difficulty Rogue Special Mode None Game No. 32 Rogue 32 Adventurer 0 Explorer 0 Win Type - Total 0 Types 0/0/0/0/0/0/0/0/0 Lore% 17 Gallery% 34 Achievement% 22 Wizard Run 0 Options --------- Layout 0 ASCII 0 Keyboard 1 Movement Numpad Keybinds 0 Fullscreen 2 Font 18/SmallcapsGlow Map View 76x50 Zoom Use 9% Tactical HUD 1 Map Filters NONE Filters LOW_CONTRAST(5,20,15) Steam 1 RUN: 9e8cac60-37d1-4810-b7b1-59b341c2200b